Workbook

Sheet доходы
E1: "УТВЕРЖДАЮ"
E2: Глава Ивановского сельсовета
E3: ________________ Э.М.Диденко
A5: Сводная бюджетная роспись на 2023 год и плановый период 2024-2025 года
A6: Администрация Ивановского сельсовета
A7: Доходы
A8: Наименование | B8: Экономи-ческая классифи-кация расходов | C8: Всего | D8: 2023 год | E8: 2024 год | F8: 2025 год
A9: Налог на доходы физических лиц | B9: 1 01 02010 01 1000 110 | C9: =D9+E9+F9 -> 5826160 | D9: 1803680 | E9: 1938800 | F9: 2083680
A10: Налог на имущество физических лиц | B10: 1 06 01030 10 1000 110 | C10: =D10+E10+F10 -> 46000 | D10: 14000 | E10: 15000 | F10: 17000
A11: Земельный налог | B11: 1 06 06000 00 0000 110 | C11: 17000 | D11: 6000 | E11: 6000 | F11: 5000
A12: Государственная пошлина за совершение нотариальных действий | B12: 1 08 04020 01 1000 110 | C12: 0 | D12: 0 | E12: 0 | F12: 0
A13: Доходы получаемые в виде арендной платы | B13: 1 11 05013 10 0000 120 | C13: 0 | D13: 0 | E13: 0 | F13: 0
A14: Доходы от сдачив аренду имущества | B14: 1 11 05035 10 0000 120 | C14: 0 | D14: 0 | E14: 0 | F14: 0
A15: Плата за негативное воздействие на окружающую среду | B15: 1 12 01000 01 0000 120 | C15: 0 | D15: 0 | E15: 0 | F15: 0
A16: Прочие доходы от оказания платных услуг | B16: 1 13 01995 10 0000 130 | C16: 0 | D16: 0 | E16: 0 | F16: 0
A17: Прочие доходы от компенсации затрат поселения | B17: 1 13 02995 20 0000 130 | C17: 0 | D17: =SUM(E17:H17) -> 0 | E17: =SUM(F17:I17) -> 0 | F17: =SUM(G17:J17) -> 0
A18: Дотация бюджетам поселений на выравнивание уровня бюджетной обеспеченности | B18: 2 02 16001 10 0000 150 | C18: 3307500.81 | D18: 1077810.54 | E18: 1103395.6 | F18: 1126294.67
A19: Субвенции бюджетам поселений на государственную регистрацию актов гражданского состояния | B19: 2 02 35930 10 0000 150 | C19: 2400 | D19: 800 | E19: 800 | F19: 800
A20: Субвенции бюджетам поселений на осуществление первичного воинского учета | B20: 2 02 35118 10 0000 150 | C20: 503500 | D20: 160600 | E20: 168300 | F20: 174600
A21: Прочие субсидии | B21: 2 02 29999 10 0000 150 | C21: =D21+E21+F21 -> 0 | D21: 0 | E21: 0 | F21: 0
A22: Прочие межбюджетные трансферты | B22: 2 02 49999 10 0000 150 | C22: 17175410 | D22: 6777000 | E22: 5272700 | F22: 5125710
A23: Итого | C23: 26877970.81 | D23: =SUM(D9:D22) -> 9839890.54 | E23: =SUM(E9:E22) -> 8504995.6 | F23: =SUM(F9:F22) -> 8533084.67
A25: Глава Ивановского сельсовета | C25: Э.М.Диденко

Sheet расходы
I1: "УТВЕРЖДАЮ"
I2: Глава Ивановского сельсовета
I3: Э.М.Диденко
A5: Сводная бюджетная роспись на 2023 год и плановый период 2024-2025 года
A6: Администрация Ивановского сельсовета
A7: Расходы
A8: Наименование | B8: Код главы | C8: Раздел | D8: Подраздел | E8: Целевая статья расходов | F8: Вид расходов | G8: Всего | H8: 2023 год | I8: 2024 год | J8: 2025 год
A9: Заработная плата | B9: 011 | C9: 0100 | D9: 0102 | E9: 8880080010 | F9: 121 | G9: =H9+I9+J9 -> 3762300 | H9: 1254100 | I9: 1254100 | J9: 1254100
A10: Начисления на выплаты по оплате труда | B10: 011 | C10: 0100 | D10: 0102 | E10: 8880080010 | F10: 129 | G10: =H10+I10+J10 -> 1136400 | H10: 378800 | I10: 378800 | J10: 378800
A11: ИТОГО | G11: 4898700 | H11: =H9+H10 -> 1632900 | I11: =I9+I10 -> 1632900 | J11: =J9+J10 -> 1632900
A12: Заработная плата | B12: 011 | C12: 0100 | D12: 0104 | E12: 8880080040 | F12: 121 | G12: 2316900 | H12: 772300 | I12: 772300 | J12: 772300
A13: Прочие выплаты | B13: 011 | C13: 0100 | D13: 0104 | E13: 8880080040 | F13: 122 | G13: =H13+I13+J13 -> 0 | H13: 0 | I13: 0 | J13: 0
A14: начисления на выплаты по оплате труда | B14: 011 | C14: 0100 | D14: 0104 | E14: 8880080040 | F14: 129 | G14: 699600 | H14: 233200 | I14: 233200 | J14: 233200
A15: Прочие закупки товаров, работ, услуг для гос.нужд | B15: 011 | C15: 0100 | D15: 0104 | E15: 8880080040 | F15: 244 | G15: 228644.96 | H15: 228644.96 | I15: 0 | J15: 0
A16: Прочие закупки товаров, работ, услуг для гос.нужд | B16: 011 | C16: 0100 | D16: 0104 | E16: 8880080040 | F16: 247 | G16: =H16+I16+J16 -> 345495.58 | H16: 345495.58 | I16: 0 | J16: 0
A17: Уплата иных платежей | B17: 011 | C17: 0100 | D17: 0104 | E17: 8880080040 | F17: 853 | G17: 15000 | H17: 5000 | I17: 5000 | J17: 5000
A18: ИТОГО | G18: 3605640.54 | H18: =SUM(H12:H17) -> 1584640.54 | I18: =SUM(I12:I17) -> 1010500 | J18: =SUM(J12:J17) -> 1010500
A19: Перечисления другим бюджетам бюджетной системы Российской Федерации | B19: 011 | C19: 0100 | D19: 0106 | E19: 8880087040 | F19: 540 | G19: =H19+I19+J19 -> 12000 | H19: 12000 | I19: 0 | J19: 0
G20: =H20+I20+J20 -> 12000 | H20: =H19 -> 12000 | I20: =I19 -> 0 | J20: =J19 -> 0
A21: Резервные фонды | B21: 011 | C21: 0100 | D21: 0111 | E21: 8880010620 | F21: 800 | G21: 15000 | H21: 5000 | I21: 5000 | J21: 5000
A22: ИТОГО | G22: 15000 | H22: =H21 -> 5000 | I22: =I21 -> 5000 | J22: =J21 -> 5000
A23: Заработная плата | B23: 011 | C23: 0100 | D23: 0113 | E23: 8880080140 | F23: 111 | G23: 4622573.27 | H23: 1955200 | I23: 1393483.6 | J23: 1273889.67
A24: Прочие выплаты | B24: 011 | C24: 0100 | D24: 0113 | E24: 8880080140 | F24: 112 | G24: =H24+I24+J24 -> 0 | H24: 0 | I24: 0 | J24: 0
A25: Начисления на выплаты по оплате труда | B25: 011 | C25: 0100 | D25: 0113 | E25: 8880080140 | F25: 119 | G25: 1396017 | H25: 590470 | I25: 420832 | J25: 384715
A26: Прочие закупки товаров, работ, услуг для гос.нужд | B26: 011 | C26: 0100 | D26: 0113 | E26: 8880080140 | F26: 244 | G26: 0 | H26: 0 | I26: 0 | J26: 0
A27: Уплата иных платежей | B27: 011 | C27: 0100 | D27: 0113 | E27: 8880080140 | F27: 853 | G27: =H27+I27+J27 -> 0 | H27: 0 | I27: 0 | J27: 0
A28: Прочие закупки товаров, работ, услуг для гос.нужд | B28: 011 | C28: 0100 | D28: 0113 | E28: 8880080190 | F28: 247 | G28: =H28+I28+J28 -> 0 | H28: 0 | I28: 0 | J28: 0
A29: Уплата иных платежей | B29: 011 | C29: 0100 | D29: 0113 | E29: 8880080190 | F29: 853 | G29: =H29+I29+J29 -> 15000 | H29: 5000 | I29: 5000 | J29: 5000
A30: Прочие закупки товаров, работ, услуг для гос.нужд | B30: 011 | C30: 0100 | D30: 0113 | E30: 8880059300 | F30: 244 | G30: 2400 | H30: 800 | I30: 800 | J30: 800
A31: ИТОГО | G31: 6035990.27 | H31: =SUM(H23:H30) -> 2551470 | I31: =SUM(I23:I30) -> 1820115.6 | J31: =SUM(J23:J30) -> 1664404.67
A32: Заработная плата | B32: 011 | C32: 0200 | D32: 0203 | E32: 8880051180 | F32: 121 | G32: 351605 | H32: 112635 | I32: 117140 | J32: 121830
A33: Прочие выплаты | B33: 011 | C33: 0200 | D33: 0203 | E33: 8880051180 | F33: 122 | G33: =H33+I33+J33 -> 0 | H33: 0 | I33: 0
A34: Начисления на выплаты по оплате труда | B34: 011 | C34: 0200 | D34: 0203 | E34: 8880051180 | F34: 129 | G34: 106185 | H34: 34015 | I34: 35380 | J34: 36790
A35: Прочие закупки товаров, работ, услуг для гос.нужд | B35: 011 | C35: 0200 | D35: 0203 | E35: 8880051180 | F35: 244 | G35: =H35+I35+J35 -> 45710 | H35: 13950 | I35: 15780 | J35: 15980
A36: ИТОГО | G36: 503500 | H36: =H32+H34+H33+H35 -> 160600 | I36: =I32+I34+I33+I35 -> 168300 | J36: =J32+J34+J33+J35 -> 174600
A37: Прочие закупки товаров, работ, услуг для гос.нужд | B37: 011 | C37: 0300 | D37: 0309 | E37: 0900110199 | F37: 244 | G37: =H37+I37+J37 -> 0 | H37: 0 | I37: 0 | J37: 0
A38: Прочие закупки товаров, работ, услуг для гос.нужд | B38: 011 | C38: 0300 | D38: 0309 | E38: 1110110201 | F38: 244 | G38: =H38+I38+J38 -> 0 | H38: 0 | I38: 0 | J38: 0
A39: Прочие закупки товаров, работ, услуг для гос.нужд | B39: 011 | C39: 0300 | D39: 0309 | E39: 1310110203 | F39: 244 | G39: =H39+I39+J39 -> 0 | H39: 0 | I39: 0 | J39: 0
A40: ИТОГО | G40: =G38 -> 0 | H40: =H38+H37+H39 -> 0 | I40: =I38+I37+I39 -> 0 | J40: =J38+J37+J39 -> 0
A41: Прочие закупки товаров, работ, услуг для гос.нужд | B41: 011 | C41: 0300 | D41: 0310 | E41: 0810110190 | F41: 244 | G41: =H41+I41+J41 -> 35000 | H41: 25000 | I41: 5000 | J41: 5000
A42: ИТОГО | G42: =G41 -> 35000 | H42: =H41 -> 25000 | I42: =I41 -> 5000 | J42: =J41 -> 5000
A43: Прочие закупки товаров, работ, услуг для гос.нужд | B43: 011 | C43: 0300 | D43: 0314 | E43: 0100110190 | F43: 244 | G43: =H43+I43+J43 -> 0 | H43: 0 | I43: 0 | J43: 0
A44: ИТОГО | G44: =G43 -> 0 | H44: =H43 -> 0 | I44: =I43 -> 0 | J44: =J43 -> 0
A45: Прочие закупки товаров, работ, услуг для гос.нужд | B45: 011 | C45: 0400 | D45: 0409 | E45: 8880080180 | F45: 244 | G45: 0 | H45: 0 | I45: 0 | J45: 0
A46: ИТОГО | G46: 0 | H46: =H45 -> 0 | I46: =I45 -> 0 | J46: =J45 -> 0
A47: Прочие закупки товаров, работ, услуг для гос.нужд | B47: 011 | C47: 0400 | D47: 0412 | E47: 0210110192 | F47: 244 | G47: 0 | H47: 0 | I47: 0 | J47: 0
A48: Прочие закупки товаров, работ, услуг для гос.нужд | B48: 011 | C48: 0400 | D48: 0412 | E48: 0310110193 | F48: 244 | G48: =H48+I48+J48 -> 0 | H48: 0 | I48: 0 | J48: 0
A49: Прочие закупки товаров, работ, услуг для гос.нужд | B49: 011 | C49: 0400 | D49: 0412 | E49: 0410110194 | F49: 244 | G49: =H49+I49+J49 -> 0 | H49: 0 | I49: 0 | J49: 0
A50: ИТОГО | G50: =G47+G48+G49 -> 0 | H50: =H47+H48+H49 -> 0 | I50: =I47+I48+I49 -> 0 | J50: =J47+J48+J49 -> 0
A51: Прочие закупки товаров, работ, услуг для гос.нужд | B51: 011 | C51: 0500 | D51: 0502 | E51: 0510110195 | F51: 244 | G51: 60000 | H51: 20000 | I51: 20000 | J51: 20000
A52: Прочие закупки товаров, работ, услуг для гос.нужд | B52: 011 | C52: 0500 | D52: 0503 | E52: 0610110196 | F52: 244 | G52: 0 | H52: 0 | I52: 0 | J52: 0
A53: Прочие закупки товаров, работ, услуг для гос.нужд | B53: 011 | C53: 0500 | D53: 0505 | E53: 1210110202 | F53: 244 | G53: =H53+I53+J53 -> 0 | H53: 0 | I53: 0 | J53: 0
A54: ИТОГО | G54: 60000 | H54: =H51+H52+H53 -> 20000 | I54: =I51+I52+I53 -> 20000 | J54: =J51+J52+J53 -> 20000
A55: Прочие закупки товаров, работ, услуг для гос.нужд | B55: 011 | C55: 0600 | D55: 0605 | E55: 0710110197 | F55: 244 | G55: =H55+I55+J55 -> 0 | H55: 0 | I55: 0 | J55: 0
A56: ИТОГО | G56: =H56+I56+J56 -> 0 | H56: =SUM(H55:H55) -> 0 | I56: =SUM(I55:I55) -> 0 | J56: =SUM(J55:J55) -> 0
A57: Прочие закупки товаров, работ, услуг для гос.нужд | B57: 011 | C57: 0800 | D57: 0801 | E57: 10101S7110 | F57: 244 | G57: =H57+I57+J57 -> 0 | H57: 0 | I57: 0 | J57: 0
A58: Заработная плата | B58: 011 | C58: 0800 | D58: 0801 | E58: 8880080141 | F58: 111 | G58: 8678760 | H58: 2892920 | I58: 2892920 | J58: 2892920
A59: Прочие выплаты | B59: 011 | C59: 0800 | D59: 0801 | E59: 8880080141 | F59: 122 | G59: =H59+I59+J59 -> 0 | H59: 0 | I59: 0 | J59: 0
A60: начисления на выплаты по оплате труда | B60: 011 | C60: 0800 | D60: 0801 | E60: 8880080141 | F60: 119 | G60: 2620980 | H60: 873660 | I60: 873660 | J60: 873660
A61: Прочие закупки товаров, работ, услуг для гос.нужд | B61: 011 | C61: 0800 | D61: 0801 | E61: 8880080141 | F61: 244 | G61: 14700 | H61: 4900 | I61: 4900 | J61: 4900
A62: Уплата иных платежей | B62: 011 | C62: 0800 | D62: 0801 | E62: 8880080141 | F62: 853 | G62: 15000 | H62: 5000 | I62: 5000 | J62: 5000
A63: ИТОГО | G63: =H63+I63+J63+G57 -> 11329440 | H63: =SUM(H57:H62) -> 3776480 | I63: =SUM(I57:I62) -> 3776480 | J63: =SUM(J57:J62) -> 3776480
A64: Социальное обеспечение | B64: 011 | C64: 1000 | D64: 1001 | E64: 8880080120 | F64: 312 | G64: 192900 | H64: 61800 | I64: 64300 | J64: 66800
A65: ИТОГО | G65: 192900 | H65: =SUM(H64:H64) -> 61800 | I65: =SUM(I64:I64) -> 64300 | J65: =SUM(J64:J64) -> 66800
A66: Физическая культура и спорт | B66: 011 | C66: 1100 | D66: 1101 | E66: 0510110190 | F66: 244 | G66: 14000 | H66: 10000 | I66: 2000 | J66: 2000
G67: 14000 | H67: =H66 -> 10000 | I67: =I66 -> 2000 | J67: =J66 -> 2000
A68: Условно утверждаемые расходы | I68: 208397.39 | J68: 417884.23
A69: ВСЕГО | G69: 26075889.19 | H69: =H11+H18+H20+H22+H31+H36+H40+H42+H44+H46+H50+H54+H56+H63+H65+H67 -> 9839890.54 | I69: =I11+I18+I20+I22+I31+I36+I40+I42+I44+I46+I50+I54+I56+I63+I65+I67-I68 -> 8296198.21 | J69: =J11+J18+J20+J22+J31+J36+J40+J42+J44+J46+J50+J54+J56+J63+J65+J67-J68 -> 7939800.44
A71: Глава и Ивановского сельсовета | C71: Э.М.Диденко

Sheet Лист3
